[Event "30th Abu Dhabi Festival A-Open 2024"]
[Site "Abu Dhabi"]
[Date "2024.08.15"]
[Round "1.11"]
[White "Sharma, Taksh"]
[Black "Fadi, Marko"]
[Result "0-1"]
[ECO "C49"]
[WhiteElo "1812"]
[BlackElo "2221"]
[Annotator "RC"]
[PlyCount "128"]
[EventDate "2024.08.15"]
[EventType "swiss"]
[EventCountry "UAE"]
[SourceTitle "playchess.com"]
[Source "ChessBase"]
[SourceQuality "1"]
[TimeControl "5400+30"]

1. e4 {[%emt 0:00:02]} e5 {[%emt 0:01:16]} 2. Nf3 {[%emt 0:00:06]} Nc6 {[%emt 0:00:04]} 3. Nc3 {[%emt 0:00:30]} Nf6 {[%emt 0:02:33]} 4. Bb5 {[%emt 0:00:36]} Bb4 {[%emt 0:03:42]} 5. O-O {[%emt 0:00:52]} O-O {[%emt 0:01:10]} 6. d3 {[%emt 0:00:24]} d6 {[%emt 0:02:54]} 7. Bg5 {[%emt 0:01:00]} Bxc3 {[%emt 0:00:23]} 8. bxc3 {[%emt 0:00:03]} Qe7 {[%emt 0:00:56]} 9. Re1 {[%emt 0:01:18]} Nd8 {[%emt 0:01:49]} 10. d4 {[%emt 0:02:38]} Ne6 {[%emt 0:00:58]} 11. Bc1 {[%emt 0:00:46]} Rd8 {[%emt 0:12:41]} 12. Ba3 {[%emt 0:11:50]} c5 {[%emt 0:00:57]} 13. Qd2 {[%emt 0:03:37]} Qc7 {[%emt 0:04:54]} 14. Bf1 {[%emt 0:07:55]} Bd7 {[%emt 0:15:04]} 15. Rab1 {[%emt 0:05:13]} Rac8 {[%emt 0:02:11]} 16. Bc1 {[%emt 0:09:37]} b6 {[%emt 0:09:34]} 17. Ba6 {[%emt 0:03:44]} Rb8 {[%emt 0:00:52]} 18. d5 {[%emt 0:01:03]} Nf4 {[%emt 0:03:25]} 19. c4 {[%emt 0:01:54]} Bc8 {[%emt 0:02:05]} 20. Bxc8 {[%emt 0:00:54]} Qxc8 {[%emt 0:00:43]} 21. Re3 {[%emt 0:08:56]} Qg4 {[%emt 0:03:43]} 22. Ne1 {[%emt 0:02:30]} Nxe4 {[%emt 0:00:17]} 23. Rxe4 {[%emt 0:03:53]} Nh3+ {[%emt 0:01:31]} 24. Kf1 {[%emt 0:00:27]} Qxe4 {[%emt 0:00:07]} 25. gxh3 {[%emt 0:00:40]} Qxc4+ {[%emt 0:00:30]} 26. Qd3 {[%emt 0:00:56]} Qxd3+ {[%emt 0:03:44]} 27. Nxd3 {[%emt 0:00:20]} b5 {[%emt 0:00:02]} 28. Bd2 {[%emt 0:02:31]} Re8 {[%emt 0:02:38]} 29. Ba5 {[%emt 0:01:18]} Rec8 {[%emt 0:00:08]} 30. a3 {[%emt 0:01:31]} Rb7 {[%emt 0:02:35]} 31. f3 {[%emt 0:02:01]} f5 {[%emt 0:00:29]} 32. Ke2 {[%emt 0:04:48]} a6 {[%emt 0:01:06]} 33. Ke3 {[%emt 0:01:54]} Re8 {[%emt 0:00:20]} 34. h4 {[%emt 0:01:07]} Rf7 {[%emt 0:01:42]} 35. Rg1 {[%emt 0:01:38]} Rf6 {[%emt 0:01:34]} 36. Rg5 {[%emt 0:02:16]} Rh6 {[%emt 0:02:56]} 37. h5 {[%emt 0:01:02]} Rf8 {[%emt 0:01:30]} 38. Bc7 {[%emt 0:01:54]} Rf7 {[%emt 0:00:09]} 39. Ba5 {[%emt 0:01:55]} g6 {[%emt 0:01:05]} 40. f4 {[%emt 0:01:40]} e4 {[%emt 0:00:12]} 41. Ne5 {[%emt 0:02:20]} Rg7 {[%emt 0:02:58]} 42. Nc6 {[%emt 0:00:54]} Rxh5 {[%emt 0:01:21]} 43. Rxh5 {[%emt 0:00:10]} gxh5 {[%emt 0:00:02]} 44. Bc3 {[%emt 0:00:30]} Rf7 {[%emt 0:02:52]} 45. Be1 {[%emt 0:01:28]} Kf8 {[%emt 0:00:20]} 46. Nd8 {[%emt 0:00:45]} Rf6 {[%emt 0:01:07]} 47. Bh4 {[%emt 0:02:04]} Rg6 {[%emt 0:00:04]} 48. Nc6 {[%emt 0:00:10]} Rg7 {[%emt 0:01:37]} 49. Bg5 {[%emt 0:00:36]} Ke8 {[%emt 0:00:11]} 50. Kf2 {[%emt 0:01:11]} Kd7 {[%emt 0:02:41]} 51. Nb8+ {[%emt 0:01:12]} Kc7 {[%emt 0:00:41]} 52. Nc6 {[%emt 0:00:18]} Kd7 {[%emt 0:00:16]} 53. Nb8+ {[%emt 0:00:08]} Ke8 {[%emt 0:00:11]} 54. Nc6 {[%emt 0:00:09]} Rb7 {[%emt 0:02:02]} 55. Ke3 {[%emt 0:03:55]} a5 {[%emt 0:00:27]} 56. Bh4 {[%emt 0:01:03]} a4 {[%emt 0:00:39]} 57. c3 {[%emt 0:00:42]} Rg7 {[%emt 0:00:45]} 58. Kf2 {[%emt 0:01:15]} Rg4 {[%emt 0:02:05]} 59. Bg5 {[%emt 0:01:50]} h4 {[%emt 0:00:07]} 60. Na7 {[%emt 0:01:34]} b4 {[%emt 0:01:24]} 61. Nb5 {[%emt 0:00:06]} bxa3 {[%emt 0:00:54]} 62. Nxa3 {[%emt 0:00:34]} h3 {[%emt 0:00:23]} 63. Nc4 {[%emt 0:00:36]} Rg2+ {[%emt 0:00:13]} 64. Ke3 {[%emt 0:00:54]} Kd7 {[%emt 0:04:41]} 0-1

[Event "30th Abu Dhabi Festival A-Open 2024"]
[Site "Abu Dhabi"]
[Date "2024.08.15"]
[Round "1.12"]
[White "Dere Pushkar"]
[Black "Ahmed, Nidal"]
[Result "1-0"]
[ECO "B07"]
[WhiteElo "2217"]
[BlackElo "1811"]
[Annotator "RC"]
[PlyCount "77"]
[EventDate "2024.08.15"]
[EventType "swiss"]
[EventCountry "UAE"]
[SourceTitle "playchess.com"]
[Source "ChessBase"]
[SourceQuality "1"]
[TimeControl "5400+30"]

1. e4 {[%emt 0:00:11]} d6 {[%emt 0:00:34]} 2. d4 {[%emt 0:00:10]} Nf6 {[%emt 0:00:22]} 3. Nc3 {[%emt 0:00:12]} g6 {[%emt 0:00:21]} 4. Bg5 {[%emt 0:00:26]} Bg7 {[%emt 0:00:25]} 5. Qd2 {[%emt 0:00:42]} h6 {[%emt 0:00:55]} 6. Bf4 {[%emt 0:03:36]} g5 {[%emt 0:00:17]} 7. Bg3 {[%emt 0:00:38]} Nh5 {[%emt 0:00:32]} 8. Bc4 {[%emt 0:01:48]} Nxg3 {[%emt 0:01:48]} 9. hxg3 {[%emt 0:00:08]} Nc6 {[%emt 0:07:25]} 10. Nge2 {[%emt 0:00:50]} e5 {[%emt 0:14:31]} 11. d5 {[%emt 0:03:44]} Ne7 {[%emt 0:04:24]} 12. f3 {[%emt 0:01:19]} a6 {[%emt 0:01:41]} 13. a4 {[%emt 0:01:01]} Bd7 {[%emt 0:01:28]} 14. g4 {[%emt 0:01:53]} Ng6 {[%emt 0:07:53]} 15. Ng3 {[%emt 0:05:42]} b5 {[%emt 0:11:05]} 16. Bf1 {[%emt 0:13:58]} bxa4 {[%emt 0:06:53]} 17. Nxa4 {[%emt 0:00:21]} Qb8 {[%emt 0:01:22]} 18. b3 {[%emt 0:01:13]} Nh4 {[%emt 0:00:57]} 19. Nb2 {[%emt 0:03:25]} Bb5 {[%emt 0:05:54]} 20. Nh5 {[%emt 0:05:41]} Kf8 {[%emt 0:00:42]} 21. Nc4 {[%emt 0:04:37]} Bxc4 {[%emt 0:01:23]} 22. Bxc4 {[%emt 0:01:20]} Qb6 {[%emt 0:00:37]} 23. c3 {[%emt 0:01:52]} f6 {[%emt 0:03:55]} 24. Ng3 {[%emt 0:08:43]} Kf7 {[%emt 0:03:16]} 25. Qe2 {[%emt 0:04:05]} Ra7 {[%emt 0:05:01]} 26. Nf1 {[%emt 0:01:57]} Qc5 {[%emt 0:01:04]} 27. b4 {[%emt 0:01:53]} Qb6 {[%emt 0:00:10]} 28. g3 {[%emt 0:00:57]} Ng6 {[%emt 0:00:06]} 29. Ra5 {[%emt 0:02:02]} Ne7 {[%emt 0:01:22]} 30. Ne3 {[%emt 0:00:35]} Kg6 {[%emt 0:02:25]} 31. Kd2 {[%emt 0:02:51]} c5 {[%emt 0:02:24]} 32. dxc6 {[%emt 0:28:40]} Nxc6 {[%emt 0:00:50]} 33. Nd5 {[%emt 0:00:00]} Qd8 {[%emt 0:05:03]} 34. Ra2 {[%emt 0:00:00]} Ne7 {[%emt 0:01:43]} 35. Ne3 {[%emt 0:00:00]} Bf8 {[%emt 0:02:42]} 36. Qh2 {[%emt 0:00:00]} Kh7 {[%emt 0:05:25]} 37. Qh5 {[%emt 0:00:00]} d5 {[%emt 0:00:57]} 38. Qf7+ {[%emt 0:00:00]} Bg7 {[%emt 0:00:29]} 39. Rxh6+ {[%emt 0:00:00]} 1-0

[Event "30th Abu Dhabi Festival A-Open 2024"]
[Site "Abu Dhabi"]
[Date "2024.08.17"]
[Round "2.1"]
[White "Yeremyan, Alen"]
[Black "Ivanov, Alexander"]
[Result "1-0"]
[ECO "A13"]
[WhiteElo "2279"]
[BlackElo "2415"]
[Annotator "ChessBase"]
[PlyCount "75"]
[EventDate "2024.08.15"]
[EventType "swiss"]
[EventCountry "UAE"]
[SourceTitle "playchess.com"]
[Source "ChessBase"]
[SourceQuality "1"]
[TimeControl "5400+30"]

1. c4 {[%emt 0:00:18]} e6 {[%emt 0:00:08]} 2. g3 {[%emt 0:00:22]} Nf6 {[%emt 0:00:25]} 3. Bg2 {[%emt 0:00:19]} d5 {[%emt 0:00:10]} 4. Nf3 {[%emt 0:01:24]} dxc4 {[%emt 0:00:25]} 5. Qa4+ {[%emt 0:00:12]} Nbd7 {[%emt 0:00:06]} 6. Qxc4 {[%emt 0:00:11]} c5 {[%emt 0:00:05]} 7. O-O {[%emt 0:01:20]} a6 {[%emt 0:00:05]} 8. Qc2 {[%emt 0:00:22]} b5 {[%emt 0:00:09]} 9. b3 {[%emt 0:05:04]} Bb7 {[%emt 0:00:17]} 10. d3 {[%emt 0:00:07]} Be7 {[%emt 0:01:05]} 11. Bb2 {[%emt 0:00:21]} O-O {[%emt 0:00:24]} 12. Nbd2 {[%emt 0:00:03]} Rc8 {[%emt 0:02:24]} 13. Rac1 {[%emt 0:00:56]} Qb6 {[%emt 0:06:41]} 14. Qb1 {[%emt 0:00:17]} Rfd8 {[%emt 0:00:40]} 15. Rfd1 {[%emt 0:00:06]} h6 {[%emt 0:06:19]} 16. Qa1 {[%emt 0:00:31]} Bf8 {[%emt 0:00:29]} 17. a3 {[%emt 0:03:20]} Bd5 {[%emt 0:18:07]} 18. h3 {[%emt 0:03:27]} Qb8 {[%emt 0:01:19]} 19. e4 {[%emt 0:01:46]} Bb7 {[%emt 0:00:20]} 20. Bc3 {[%emt 0:04:31]} b4 {[%emt 0:06:59]} 21. Bb2 {[%emt 0:01:45]} Nb6 {[%emt 0:01:03]} 22. axb4 {[%emt 0:03:55]} cxb4 {[%emt 0:00:48]} 23. Be5 {[%emt 0:05:38]} Rxc1 {[%emt 0:04:57]} 24. Rxc1 {[%emt 0:00:16]} Qa7 {[%emt 0:00:57]} 25. Bxf6 {[%emt 0:09:14]} gxf6 {[%emt 0:00:07]} 26. Qxf6 {[%emt 0:00:07]} Rd7 {[%emt 0:01:53]} 27. Qf4 {[%emt 0:00:42]} a5 {[%emt 0:01:04]} 28. Ne5 {[%emt 0:01:39]} Re7 {[%emt 0:00:39]} 29. Ng4 {[%emt 0:01:21]} a4 {[%emt 0:00:15]} 30. bxa4 {[%emt 0:01:30]} Qxa4 {[%emt 0:00:13]} 31. Nf6+ {[%emt 0:00:10]} Kh8 {[%emt 0:00:43]} 32. Qb8 {[%emt 0:04:40]} Qa8 {[%emt 0:01:10]} 33. Qd6 {[%emt 0:02:09]} Qa3 {[%emt 0:01:21]} 34. Rb1 {[%emt 0:01:42]} Qc3 {[%emt 0:00:41]} 35. Qxb6 {[%emt 0:04:22]} Qxf6 {[%emt 0:00:18]} 36. Qxb4 {[%emt 0:01:39]} Ba6 {[%emt 0:02:37]} 37. Qd6 {[%emt 0:02:11]} Qc3 {[%emt 0:01:25]} 38. Rb8 1-0

[Event "30th Abu Dhabi Festival A-Open 2024"]
[Site "Abu Dhabi"]
[Date "2024.08.17"]
[Round "2.2"]
[White "Bhuvan Krishna Prasanth"]
[Black "Diaz Villagran, Robert"]
[Result "1-0"]
[ECO "E61"]
[WhiteElo "1940"]
[BlackElo "2268"]
[Annotator "ChessBase"]
[PlyCount "66"]
[EventDate "2024.08.15"]
[EventType "swiss"]
[EventCountry "UAE"]
[SourceTitle "playchess.com"]
[Source "ChessBase"]
[SourceQuality "1"]
[TimeControl "5400+30"]

1. d4 {[%emt 0:00:04]} Nf6 {[%emt 0:08:14]} 2. c4 d6 {[%emt 1:23:16]} 3. Nc3 {[%emt 0:00:18]} e5 {[%emt 0:00:00]} 4. e3 {[%emt 0:01:52]} Nbd7 {[%emt 0:00:00]} 5. Bd3 {[%emt 0:00:19]} g6 {[%emt 0:00:00]} 6. Nge2 Bg7 7. O-O {[%emt 0:00:41]} O-O {[%emt 0:00:00]} 8. b3 {[%emt 0:00:15]} Nh5 {[%emt 0:00:00]} 9. Bb2 {[%emt 0:04:47]} f5 {[%emt 0:00:00]} 10. dxe5 {[%emt 0:00:30]} dxe5 {[%emt 0:00:00]} 11. e4 {[%emt 0:00:30]} f4 {[%emt 0:00:00]} 12. f3 {[%emt 0:00:30]} c6 {[%emt 0:00:00]} 13. Qe1 {[%emt 0:00:30]} Rf7 {[%emt 0:00:00]} 14. Rd1 {[%emt 0:00:30]} Bf8 {[%emt 0:00:00]} 15. Kh1 {[%emt 0:00:30]} Qg5 {[%emt 0:00:00]} 16. Na4 {[%emt 0:00:30]} Nb6 {[%emt 0:00:00]} 17. Qc3 {[%emt 0:00:30]} Bg7 {[%emt 0:00:00]} 18. c5 {[%emt 0:00:30]} Nxa4 {[%emt 0:00:00]} 19. bxa4 {[%emt 0:00:30]} Kh8 {[%emt 0:00:00]} 20. Bc4 {[%emt 0:00:30]} Rf8 {[%emt 0:00:00]} 21. Rd6 {[%emt 0:00:30]} Qe7 {[%emt 0:00:00]} 22. Rfd1 {[%emt 0:00:30]} Re8 {[%emt 0:00:00]} 23. Qd2 {[%emt 0:00:30]} Nf6 {[%emt 0:00:00]} 24. Rd8 {[%emt 0:00:30]} Be6 {[%emt 0:00:00]} 25. Rxa8 {[%emt 0:00:30]} Rxa8 {[%emt 0:00:00]} 26. Bxe6 {[%emt 0:00:30]} Qxe6 {[%emt 0:00:00]} 27. Qd6 {[%emt 0:00:30]} Qxa2 {[%emt 0:00:00]} 28. Bxe5 {[%emt 0:00:30]} Qxe2 {[%emt 0:00:00]} 29. Bxf6 {[%emt 0:00:30]} Bxf6 {[%emt 0:00:00]} 30. Qxf6+ {[%emt 0:00:30]} Kg8 {[%emt 0:00:00]} 31. Qe6+ {[%emt 0:00:30]} Kh8 {[%emt 0:00:00]} 32. Qd6 {[%emt 0:00:30]} Re8 {[%emt 0:00:00]} 33. h3 {[%emt 0:00:30]} Kg8 {[%emt 0:00:00]} 1-0

[Event "30th Abu Dhabi Festival A-Open 2024"]
[Site "Abu Dhabi"]
[Date "2024.08.17"]
[Round "2.3"]
[White "Gowrishankar Jayaraj"]
[Black "Aditya Varun Gampa"]
[Result "1/2-1/2"]
[ECO "B24"]
[WhiteElo "1924"]
[BlackElo "2261"]
[Annotator "ChessBase"]
[PlyCount "33"]
[EventDate "2024.08.15"]
[EventType "swiss"]
[EventCountry "UAE"]
[SourceTitle "playchess.com"]
[Source "ChessBase"]
[SourceQuality "1"]
[TimeControl "5400+30"]

1. e4 {[%emt 1:19:43]} c5 {[%emt 1:04:48]} 2. Nf3 {[%emt 0:00:30]} e6 {[%emt 0:00:30]} 3. g3 {[%emt 0:00:30]} Nc6 {[%emt 0:00:30]} 4. Bg2 {[%emt 0:00:30]} Nf6 {[%emt 0:00:30]} 5. Nc3 {[%emt 0:00:30]} d5 {[%emt 0:00:30]} 6. exd5 {[%emt 0:00:30]} exd5 {[%emt 0:00:30]} 7. d4 {[%emt 0:00:30]} cxd4 {[%emt 0:00:30]} 8. Nxd4 {[%emt 0:00:30]} Bg4 {[%emt 0:00:30]} 9. Nxc6 {[%emt 0:00:30]} bxc6 {[%emt 0:00:30]} 10. Qd4 {[%emt 0:00:30]} Be7 {[%emt 0:00:30]} 11. O-O {[%emt 0:00:30]} O-O {[%emt 0:00:30]} 12. Na4 {[%emt 0:00:30]} Qc8 {[%emt 0:00:30]} 13. Re1 {[%emt 0:00:30]} c5 {[%emt 0:00:30]} 14. Qe5 {[%emt 0:00:30]} Re8 {[%emt 0:00:30]} 15. Bf4 {[%emt 0:00:30]} Bh3 {[%emt 0:00:30]} 16. Qc7 {[%emt 0:00:30]} Bxg2 {[%emt 0:00:30]} 17. Qxc8 {[%emt 0:00:30]} 1/2-1/2

[Event "30th Abu Dhabi Festival A-Open 2024"]
[Site "Abu Dhabi"]
[Date "2024.08.17"]
[Round "2.4"]
[White "Lad Mandar Pradip"]
[Black "Al Zadjali, Abdul Rahman"]
[Result "1-0"]
[ECO "D10"]
[WhiteElo "2254"]
[BlackElo "1939"]
[Annotator "ChessBase"]
[PlyCount "39"]
[EventDate "2024.08.15"]
[EventType "swiss"]
[EventCountry "UAE"]
[SourceTitle "playchess.com"]
[Source "ChessBase"]
[SourceQuality "1"]
[TimeControl "5400+30"]

1. d4 {[%emt 0:01:36]} d5 {[%emt 0:04:20]} 2. c4 {[%emt 0:00:20]} dxc4 {[%emt 0:00:42]} 3. e4 {[%emt 0:01:00]} b5 {[%emt 0:00:14]} 4. a4 {[%emt 0:01:17]} c6 {[%emt 0:00:06]} 5. Nc3 {[%emt 0:05:11]} b4 {[%emt 0:04:20]} 6. Nb1 {[%emt 0:01:15]} e5 {[%emt 0:03:37]} 7. Nf3 {[%emt 0:05:10]} exd4 {[%emt 0:06:13]} 8. Bxc4 {[%emt 0:00:45]} Nf6 {[%emt 0:11:01]} 9. Qb3 {[%emt 0:21:15]} Be6 {[%emt 0:18:15]} 10. Bxe6 {[%emt 0:00:16]} fxe6 {[%emt 0:00:06]} 11. Ng5 {[%emt 0:08:17]} Qe7 {[%emt 0:11:41]} 12. Nxe6 {[%emt 0:02:20]} Kd7 {[%emt 0:00:44]} 13. Nxf8+ {[%emt 0:02:40]} Rxf8 {[%emt 0:00:02]} 14. O-O {[%emt 0:00:22]} Rf7 {[%emt 0:07:19]} 15. Nd2 {[%emt 0:10:58]} Kc8 {[%emt 0:13:10]} 16. Nf3 {[%emt 0:11:35]} c5 {[%emt 0:07:54]} 17. e5 {[%emt 0:02:34]} Ne8 {[%emt 0:01:02]} 18. Bg5 {[%emt 0:02:08]} Qb7 {[%emt 0:01:11]} 19. Rac1 {[%emt 0:02:24]} Rxf3 {[%emt 0:02:04]} 20. Rxc5+ {[%emt 0:00:33]} 1-0

[Event "30th Abu Dhabi Festival A-Open 2024"]
[Site "Abu Dhabi"]
[Date "2024.08.17"]
[Round "2.5"]
[White "Watarkar Yash"]
[Black "Hamidov, Allahverdi"]
[Result "0-1"]
[ECO "A13"]
[WhiteElo "1915"]
[BlackElo "2253"]
[Annotator "ChessBase"]
[PlyCount "74"]
[EventDate "2024.08.15"]
[EventType "swiss"]
[EventCountry "UAE"]
[SourceTitle "playchess.com"]
[Source "ChessBase"]
[SourceQuality "1"]
[TimeControl "5400+30"]

1. c4 {[%emt 0:00:54]} e6 {[%emt 0:01:51]} 2. Nf3 {[%emt 0:00:59]} d5 {[%emt 0:00:05]} 3. e3 {[%emt 0:04:13]} Nf6 {[%emt 0:00:28]} 4. b3 {[%emt 0:00:33]} c5 {[%emt 0:02:12]} 5. Bb2 {[%emt 0:00:15]} Nc6 {[%emt 0:00:21]} 6. cxd5 {[%emt 0:06:43]} exd5 {[%emt 0:00:07]} 7. Bb5 {[%emt 0:00:24]} Bd6 {[%emt 0:00:23]} 8. d4 {[%emt 0:04:25]} cxd4 {[%emt 0:03:46]} 9. Nxd4 {[%emt 0:06:45]} Bd7 {[%emt 0:02:35]} 10. Nc3 {[%emt 0:09:18]} O-O {[%emt 0:00:35]} 11. Nf3 {[%emt 0:07:31]} Bg4 {[%emt 0:02:46]} 12. Be2 {[%emt 0:06:19]} a6 {[%emt 0:04:35]} 13. O-O {[%emt 0:01:24]} Bc7 {[%emt 0:01:22]} 14. h3 {[%emt 0:11:13]} Bh5 {[%emt 0:00:38]} 15. Ba3 {[%emt 0:04:07]} Re8 {[%emt 0:01:11]} 16. Rc1 {[%emt 0:03:25]} Bb8 {[%emt 0:06:59]} 17. Nd4 {[%emt 0:05:28]} Qc7 {[%emt 0:02:54]} 18. f4 {[%emt 0:01:37]} Bxe2 {[%emt 0:07:36]} 19. Ncxe2 {[%emt 0:00:57]} Rxe3 {[%emt 0:00:48]} 20. Nxc6 {[%emt 0:06:25]} bxc6 {[%emt 0:00:29]} 21. Nd4 {[%emt 0:00:24]} Qa5 {[%emt 0:23:32]} 22. Bc5 {[%emt 0:01:37]} Rc3 {[%emt 0:04:15]} 23. b4 {[%emt 0:04:08]} Rxc1 {[%emt 0:01:20]} 24. Qxc1 {[%emt 0:02:10]} Qc7 {[%emt 0:01:23]} 25. g3 {[%emt 0:07:10]} Ne4 {[%emt 0:00:45]} 26. Kg2 {[%emt 0:00:02]} a5 {[%emt 0:00:38]} 27. Re1 {[%emt 0:02:37]} axb4 {[%emt 0:00:56]} 28. Re2 {[%emt 0:00:11]} Ra3 {[%emt 0:00:55]} 29. Nb3 {[%emt 0:00:24]} Qb7 {[%emt 0:01:29]} 30. Qe1 {[%emt 0:00:36]} Qa6 {[%emt 0:01:21]} 31. Bxb4 {[%emt 0:02:13]} Rxa2 {[%emt 0:00:11]} 32. Nd2 {[%emt 0:00:06]} Ba7 {[%emt 0:02:31]} 33. Rxe4 {[%emt 0:00:23]} dxe4 {[%emt 0:00:13]} 34. Qxe4 {[%emt 0:00:04]} Qc8 {[%emt 0:00:26]} 35. Qc4 {[%emt 0:00:56]} Qe6 {[%emt 0:00:25]} 36. Qxe6 {[%emt 0:01:09]} fxe6 {[%emt 0:00:01]} 37. Kf3 {[%emt 0:00:15]} Bc5 {[%emt 0:00:39]} 0-1

[Event "30th Abu Dhabi Festival A-Open 2024"]
[Site "Abu Dhabi"]
[Date "2024.08.17"]
[Round "2.6"]
[White "Md Imran"]
[Black "Kakavand, Ramtin"]
[Result "1-0"]
[ECO "D15"]
[WhiteElo "2225"]
[BlackElo "1932"]
[Annotator "ChessBase"]
[PlyCount "81"]
[EventDate "2024.08.15"]
[EventType "swiss"]
[EventCountry "UAE"]
[SourceTitle "playchess.com"]
[Source "ChessBase"]
[SourceQuality "1"]
[TimeControl "5400+30"]

1. d4 {[%emt 0:04:30]} d5 {[%emt 0:00:02]} 2. Nf3 {[%emt 0:00:03]} Nf6 {[%emt 0:00:11]} 3. c4 {[%emt 0:01:23]} c6 {[%emt 0:00:03]} 4. e3 {[%emt 0:03:38]} a6 {[%emt 0:05:07]} 5. Nc3 {[%emt 0:03:16]} b5 {[%emt 0:00:10]} 6. c5 {[%emt 0:02:22]} Nbd7 {[%emt 0:04:34]} 7. h3 {[%emt 0:01:01]} Qc7 {[%emt 0:00:18]} 8. Bd2 {[%emt 0:02:24]} e5 {[%emt 0:06:48]} 9. g4 {[%emt 0:03:22]} h6 {[%emt 0:02:48]} 10. Bg2 {[%emt 0:02:16]} e4 {[%emt 0:14:21]} 11. Nh2 {[%emt 0:01:05]} Be7 {[%emt 0:01:25]} 12. O-O {[%emt 0:02:52]} Nf8 {[%emt 0:05:10]} 13. f3 {[%emt 0:01:31]} exf3 {[%emt 0:00:46]} 14. Nxf3 {[%emt 0:00:02]} Ng6 {[%emt 0:00:01]} 15. Qe1 {[%emt 0:01:53]} O-O {[%emt 0:00:17]} 16. Ne2 {[%emt 0:00:05]} Ne4 {[%emt 0:01:43]} 17. Ba5 {[%emt 0:00:11]} Qb8 {[%emt 0:00:37]} 18. Nf4 {[%emt 0:01:06]} Bf6 {[%emt 0:08:55]} 19. Nh5 {[%emt 0:04:47]} Be7 {[%emt 0:08:12]} 20. Nf4 {[%emt 0:06:02]} Bf6 {[%emt 0:01:26]} 21. Nxg6 {[%emt 0:10:41]} fxg6 {[%emt 0:00:18]} 22. Nd2 {[%emt 0:00:40]} Nxd2 {[%emt 0:02:27]} 23. Qxd2 {[%emt 0:00:18]} Re8 {[%emt 0:00:02]} 24. Qd3 {[%emt 0:00:21]} Kh7 {[%emt 0:13:58]} 25. Rae1 {[%emt 0:01:02]} Qg3 {[%emt 0:02:07]} 26. Rf3 {[%emt 0:02:13]} Qh4 {[%emt 0:00:03]} 27. Ref1 {[%emt 0:03:35]} Ra7 {[%emt 0:01:07]} 28. Be1 {[%emt 0:02:38]} Qg5 {[%emt 0:00:21]} 29. Rf4 {[%emt 0:01:15]} Bd8 {[%emt 0:02:24]} 30. h4 {[%emt 0:00:36]} Qe7 {[%emt 0:01:26]} 31. e4 {[%emt 0:00:02]} dxe4 {[%emt 0:01:00]} 32. Bxe4 {[%emt 0:00:58]} Qe6 {[%emt 0:01:25]} 33. h5 {[%emt 0:00:05]} Bf6 {[%emt 0:00:36]} 34. Bxg6+ {[%emt 0:00:23]} Kg8 {[%emt 0:00:08]} 35. Bxe8 {[%emt 0:00:14]} Qxe8 {[%emt 0:00:10]} 36. Qg6 {[%emt 0:05:37]} Qe3+ {[%emt 0:01:28]} 37. Kg2 {[%emt 0:00:26]} Rf7 {[%emt 0:00:52]} 38. Re4 {[%emt 0:01:00]} Qc1 {[%emt 0:00:24]} 39. Re8+ {[%emt 0:00:17]} Rf8 {[%emt 0:00:01]} 40. Rxf6 {[%emt 0:00:19]} Qxb2+ {[%emt 0:00:06]} 41. Rf2 {[%emt 0:00:15]} 1-0